[Event "European Women Blitz-ch 2024"]
[Site "Monaco"]
[Date "2025.01.10"]
[Round "6.8"]
[White "Roebers, Eline"]
[Black "Kazarian, Anna-Maja"]
[Result "1-0"]
[Annotator "TA"]
[ECO "C00"]
[WhiteElo "2381"]
[BlackElo "2206"]
[PlyCount "55"]
[EventDate "2025.01.06"]
[EventType "swiss"]
[EventCountry "MNC"]
[SourceTitle "playchess.com"]
[Source "ChessBase"]
[SourceQuality "1"]
[TimeControl "180+2"]

{[%evp 9,54,7,11,0,23,-9,-10,-29,-35,-83,62,25,43,0,146,76,91,80,145,87,129,145,131,139,791,611,593,590,589,580,1843,1765,1765,1056,1061,1022,1672,1544,1509,485,2339,823,2310,2297,2286,2276,29999]} 1. e4 {[%emt 0:00:01]} e6 {[%emt 0:00:00]} 2. Nf3 {[%emt 0:00:01]} d5 {[%emt 0:00:05]} 3. e5 {[%emt 0:00:01]} c5 {[%emt 0:00:03]} 4. b4 {[%emt 0:00:01]} d4 {[%emt 0:00:01]} 5. bxc5 {[%emt 0:00:06]} Bxc5 {[%emt 0:00:01]} 6. Ba3 {[%emt 0:00:07]} Qa5 {[%emt 0:00:20]} 7. Bxc5 {[%emt 0:00:03]} (7. Qe2 $5) 7... Qxc5 {[%emt 0:00:01]} 8. Bd3 {[%emt 0:00:01]} Nc6 {[%emt 0:00:22]} 9. Qe2 {[%emt 0:00:09] [#]} (9. O-O $15 {might be stronger.}) 9... Nb4 {[%emt 0:00:02]} (9... Qb4 $1 $17 {[%cal Rb4b2] Threatens to win with ...Qb2.} 10. O-O Qb2) 10. Na3 {[%emt 0:00:17][%cal Bb1a3,Ba3c4,Bc4d6][%mdl 32]} Ne7 {[%emt 0:00:16]} 11. Nc4 {[%emt 0:00:06]} Ng6 {[%emt 0:00:43]} (11... O-O $11) 12. O-O {[%emt 0:00:19]} (12. Nd6+ $142 Ke7 13. Bxg6 hxg6 14. O-O) 12... O-O $16 {[%emt 0:00:11]} 13. Bxg6 {[%emt 0:00:14]} hxg6 {[%emt 0:00:03]} (13... fxg6 $142 14. Nd6 Rb8) 14. d3 {[%emt 0:00:01]} (14. Nd6 $142) 14... b5 {[%emt 0:00:05]} 15. Nd6 {[%emt 0:00:01]} Bd7 {[%emt 0:00:10] [#]} 16. Qe4 $1 {[%emt 0:00:16] Threatens to win with Qh4.} Qxc2 $2 {[%emt 0:00:08][%mdl 8192]} (16... Nd5 $16 17. Qh4 (17. Nxd4 $2 {too greedy.} Nc3 $19) (17. Qxd4 Qxd4 18. Nxd4 Nc3 $16) 17... f6) 17. Qh4 {[%emt 0:00:14]} (17. Qxd4 Nd5 $16) (17. Nxd4 Qxd3 18. Qg4 Nc6 $16) 17... f6 {[%emt 0:00:18] Wards off Ng5} 18. exf6 {[%emt 0:00:07]} (18. Qxd4 Nd5 $16) (18. Nxd4 Qc7 $16) 18... gxf6 {[%emt 0:00:01][%cal Oc2c5]} 19. Qh6 {[%emt 0:00:07]} ({Not} 19. Nxd4 Qc5 20. N4xb5 Bxb5 $11) 19... Bc6 {[%emt 0:00:41]} 20. Qxg6+ {[%emt 0:00:05]} Kh8 {[%emt 0:00:01]} 21. Nf7+ {[%emt 0:00:08]} Rxf7 {[%emt 0:00:00]} 22. Qxf7 {[%emt 0:00:02]} Qxd3 {[%emt 0:00:08]} 23. Qxf6+ {[%emt 0:00:01]} Kg8 {[%emt 0:00:02]} 24. Ne5 {[%emt 0:00:06]} (24. Qxe6+ $142 Kg7 25. Qe7+ Kg8 26. Qg5+ (26. Qxb4 Bxf3 27. gxf3 Kf7 $18) 26... Kf8 27. Qf6+ Kg8 28. Rfe1 (28. Nxd4 Qe4 $18)) 24... Qe4 {[%emt 0:00:04]} (24... Qf5 $142 25. Qxf5 exf5) 25. Qf7+ $18 {[%emt 0:00:01]} Kh8 {[%emt 0:00:01]} 26. Ng6+ {[%emt 0:00:01]} (26. Qxe6 $2 Qxg2#) 26... Qxg6 {[%emt 0:00:03]} 27. Qxg6 {[%emt 0:00:01][%cal Oa1e1] White threatens Rae1! and mate.} Rg8 {[%emt 0:00:01]} 28. Qh6# 1-0

[Event "European Women Blitz-ch 2024"]
[Site "Monaco"]
[Date "2025.01.10"]
[Round "6.9"]
[White "Hrebenshchykova, Yelyzaveta"]
[Black "Zhukova, Natalia"]
[Result "0-1"]
[Annotator "TA"]
[ECO "C88"]
[WhiteElo "2280"]
[BlackElo "2306"]
[PlyCount "74"]
[EventDate "2025.01.06"]
[EventType "swiss"]
[EventCountry "MNC"]
[SourceTitle "playchess.com"]
[Source "ChessBase"]
[SourceQuality "1"]
[TimeControl "180+2"]

{[%evp 20,74,36,40,66,47,65,54,54,49,42,22,53,37,54,63,91,74,112,71,69,0,0,0,0,0,10,14,6,0,308,27,18,18,41,-9,-8,-17,0,-12,74,76,52,0,0,0,14,-479,-479,-570,-560,-625,-619,-614,-556,-5627,-5479]} 1. e4 {[%emt 0:00:01]} e5 {[%emt 0:00:01]} 2. Nf3 {[%emt 0:00:01]} Nc6 {[%emt 0:00:02]} 3. Bb5 {[%emt 0:00:03]} a6 {[%emt 0:00:02]} 4. Ba4 {[%emt 0:00:01]} Nf6 {[%emt 0:00:02]} 5. O-O {[%emt 0:00:02]} b5 {[%emt 0:00:01]} 6. Bb3 {[%emt 0:00:01]} Bb7 {[%emt 0:00:02]} 7. d3 {[%emt 0:00:03]} Be7 {[%emt 0:00:06]} 8. a4 {[%emt 0:00:24]} O-O {[%emt 0:00:05]} 9. Re1 {[%emt 0:00:13]} d6 {[%emt 0:00:08]} 10. c3 {[%emt 0:00:09]} Qd7 {[%emt 0:00:12]} 11. Nbd2 {[%emt 0:00:11]} h6 {[%emt 0:00:25]} 12. Nf1 {[%emt 0:00:03]} (12. Nh4 {is interesting.} Rfb8 13. Nf5 Bc8 14. Nf3) 12... Nd8 {[%emt 0:00:02][%cal Bc6d8,Bd8e6,Be6c7][%mdl 32]} 13. axb5 {[%emt 0:00:19]} axb5 {[%emt 0:00:01]} 14. Rxa8 {[%emt 0:00:01]} Bxa8 {[%emt 0:00:01]} 15. Ng3 {[%emt 0:00:02]} Ne6 {[%emt 0:00:01]} 16. d4 {[%emt 0:00:03]} exd4 {[%emt 0:00:21]} 17. cxd4 {[%emt 0:00:01][%cal Bc3d4,Bd4d5][%mdl 32]} c5 {[%emt 0:00:17]} 18. d5 {[%emt 0:00:28]} Nc7 {[%emt 0:00:06]} 19. Nf5 {[%emt 0:00:04][%cal Oc1h6]} Re8 {[%emt 0:00:08][%cal Oc7d5]} 20. Nxe7+ {[%emt 0:00:12]} (20. Bc2 $14) 20... Rxe7 $11 {[%emt 0:00:04]} 21. Bc2 {[%emt 0:00:01]} Qe8 $1 {[%emt 0:00:15]} 22. e5 {[%emt 0:00:28]} Nfxd5 {[%emt 0:00:33]} (22... dxe5 $2 23. d6 Rd7 (23... Bxf3 $2 24. Qxf3 e4 25. Qg3 $18) 24. Nxe5 $18) 23. exd6 {[%emt 0:00:03]} Rxe1+ {[%emt 0:00:03]} 24. Qxe1 {[%emt 0:00:15]} Qxe1+ {[%emt 0:00:14]} (24... Ne6 $5) 25. Nxe1 {[%emt 0:00:02]} Ne6 {[%emt 0:00:01]} 26. Bf5 {[%emt 0:00:26] Bxe6 would now be deadly.} Kf8 {[%emt 0:00:05]} 27. Nd3 {[%emt 0:00:01]} (27. Bxe6 $14 fxe6 28. Nd3) 27... Nd4 {[%emt 0:00:15] and ...c4 should not be overlooked} 28. Bg4 {[%emt 0:00:02]} c4 {[%emt 0:00:07]} 29. Ne5 {[%emt 0:00:08]} f5 {[%emt 0:00:08]} (29... f6 $11 {remains equal.} 30. Nd7+ Ke8) 30. Bh5 $16 {[%emt 0:00:05]} Nf6 {[%emt 0:00:02]} 31. Bd1 {[%emt 0:00:06]} ({White should play} 31. Be3 $1 $14 Ne6 32. Bg6) 31... Ke8 $11 {[%emt 0:00:03]} 32. Be3 {[%emt 0:00:01]} Nc6 {[%emt 0:00:02] [#] Excellent horsemanship.} 33. Bb6 $2 {[%emt 0:00:02][%mdl 8192]} Nxe5 $19 {[%emt 0:00:02]} 34. Kf1 {[%emt 0:00:04]} Kd7 {[%emt 0:00:00]} 35. Bc5 {[%emt 0:00:02]} Nd3 {[%emt 0:00:02][%csl LRb2,LRc5]} 36. Bd4 {[%emt 0:00:02]} Kxd6 {[%emt 0:00:02]} 37. Be5+ {[%emt 0:00:06]} Kxe5 {[%emt 0:00:15]} 0-1

[Event "European Women Blitz-ch 2024"]
[Site "Monaco"]
[Date "2025.01.10"]
[Round "6.10"]
[White "Papp, Petra"]
[Black "Stefanova, Antoaneta"]
[Result "1-0"]
[Annotator "TA"]
[ECO "D02"]
[WhiteElo "2235"]
[BlackElo "2418"]
[PlyCount "145"]
[EventDate "2025.01.06"]
[EventType "swiss"]
[EventCountry "MNC"]
[SourceTitle "playchess.com"]
[Source "ChessBase"]
[SourceQuality "1"]
[TimeControl "180+2"]

{[%evp 10,145,23,23,25,25,25,0,53,9,22,2,0,-34,0,0,0,7,47,47,48,30,39,35,32,32,40,19,19,0,23,0,0,0,0,13,13,12,13,0,7,0,0,0,0,0,0,0,22,0,0,0,6,0,0,0,0,0,0,0,0,0,16,8,88,8,88,8,8,8,8,8,8,8,8,0,8,0,8,8,8,8,8,8,8,8,216,216,345,345,345,345,345,150,345,125,154,123,345,345,345,345,297,298,275,275,275,275,344,386,372,374,366,327,484,387,412,156,156,156,210,251,807,783,772,753,836,844,875,867,1039,989,1023,981,1658,1601,29973,12222]} 1. d4 {[%emt 0:00:01]} d5 {[%emt 0:00:01]} 2. Nf3 {[%emt 0:00:02]} Nf6 {[%emt 0:00:01]} 3. Bf4 {[%emt 0:00:01]} e6 {[%emt 0:00:02]} 4. e3 {[%emt 0:00:00]} Bd6 {[%emt 0:00:01]} 5. Ne5 {[%emt 0:00:15]} Nbd7 {[%emt 0:01:01][%cal Bb8d7,Bd7f8,Bf8g6][%mdl 32]} 6. Nd2 {[%emt 0:00:05]} Nf8 {[%emt 0:00:17]} 7. Bg3 {[%emt 0:00:06]} Ng6 {[%emt 0:00:05]} 8. f4 {[%emt 0:00:00]} Ne4 {[%emt 0:00:05]} ({Black should try} 8... O-O $11) 9. Bd3 {[%emt 0:00:19]} f5 {[%emt 0:00:14]} 10. Qh5 {[%emt 0:00:29]} Bxe5 {[%emt 0:00:10]} 11. fxe5 {[%emt 0:00:04]} Nxd2 {[%emt 0:00:08]} 12. Kxd2 {[%emt 0:00:02]} c5 {[%emt 0:00:00]} 13. c3 {[%emt 0:00:04]} c4 {[%emt 0:00:05]} 14. Bc2 {[%emt 0:00:03] Black is weak on the dark squares} b5 {[%emt 0:00:11][%cal Ob5b4]} 15. a3 {[%emt 0:00:09]} a5 {[%emt 0:00:03]} 16. Qf3 {[%emt 0:00:13]} Rb8 {[%emt 0:00:09]} 17. h4 {[%emt 0:00:03]} h5 {[%emt 0:00:08]} 18. Bf4 {[%emt 0:00:03]} Nxf4 {[%emt 0:00:05]} 19. Qxf4 {[%emt 0:00:05]} Qe7 {[%emt 0:00:08]} (19... Rb7 {is more complex.} 20. Qg3 Kf7 21. Rhf1 Rc7) 20. Rh3 {[%emt 0:00:08]} Bd7 {[%emt 0:00:12]} 21. Rg3 {[%emt 0:00:05]} Kd8 {[%emt 0:00:20]} 22. Qg5 {[%emt 0:00:06]} Qxg5 {[%emt 0:00:05]} 23. Rxg5 {[%emt 0:00:01]} Rh7 {[%emt 0:00:01]} 24. Bd1 {[%emt 0:00:07]} Be8 {[%emt 0:00:01]} 25. Bc2 {[%emt 0:00:14]} g6 {[%emt 0:00:01]} 26. Rg3 {[%emt 0:00:07][%cal Bg5g3,Bg3h3,Bh3h1,Bh1f1][%mdl 32]} Rhb7 {[%emt 0:00:01]} 27. Rh3 {[%emt 0:00:03]} Ke7 {[%emt 0:00:01]} 28. Rhh1 {[%emt 0:00:01]} Bd7 {[%emt 0:00:01]} 29. Rhf1 {[%emt 0:00:01]} b4 {[%emt 0:00:02]} 30. axb4 {[%emt 0:00:02]} axb4 {[%emt 0:00:01]} 31. Ra6 {[%emt 0:00:06]} b3 {[%emt 0:00:03]} 32. Bd1 {[%emt 0:00:03]} Rb6 {[%emt 0:00:02]} 33. Ra5 {[%emt 0:00:02]} Rb5 {[%emt 0:00:02]} 34. Ra3 {[%emt 0:00:01]} R5b7 {[%emt 0:00:05]} 35. Be2 {[%emt 0:00:01]} Bc6 {[%emt 0:00:02]} 36. Rfa1 {[%emt 0:00:01]} Kd7 {[%emt 0:00:01]} (36... Rc7 $11) 37. Ra6 {[%emt 0:00:02]} (37. Ke1 $16) 37... Kc7 {[%emt 0:00:01]} (37... Rb6 $11) 38. R1a5 {[%emt 0:00:01] White is more active.} ({Better is} 38. Ke1 $16) 38... Rb5 {[%emt 0:00:02]} 39. Ra3 {[%emt 0:00:04]} R5b6 {[%emt 0:00:02]} 40. R6a5 {[%emt 0:00:01]} Rb5 {[%emt 0:00:01]} 41. Ra7+ {[%emt 0:00:01]} R5b7 {[%emt 0:00:01]} 42. R7a6 {[%emt 0:00:04]} Rb6 {[%emt 0:00:01]} 43. Ra7+ {[%emt 0:00:08]} R6b7 {[%emt 0:00:00]} 44. Ke1 {[%emt 0:00:04]} Rxa7 {[%emt 0:00:11]} 45. Rxa7+ $11 {[%emt 0:00:01][%mdl 4096] Endgame KRB-KRB} Rb7 {[%emt 0:00:05]} 46. Ra3 {[%emt 0:00:17]} Rb8 {[%emt 0:00:06]} 47. Kf2 {[%emt 0:00:02]} Kb6 $2 {[%emt 0:00:05]} (47... Kd8 $11 {and Black is okay.}) 48. Kg3 $18 {[%emt 0:00:01]} Rg8 {[%emt 0:00:02]} (48... Rf8 49. Kf4 Rd8) 49. Kf4 {[%emt 0:00:01]} Be8 {[%emt 0:00:02]} 50. Kg5 {[%emt 0:00:01]} Rf8 {[%emt 0:00:02]} 51. Ra8 {[%emt 0:00:00]} (51. Bf3 $18) 51... Kb7 $2 {[%emt 0:00:01] [#]} (51... f4 $16) 52. Ra5 $2 {[%emt 0:00:08]} (52. Ra1 $1 $18) 52... Kb6 {[%emt 0:00:04]} 53. Ra3 {[%emt 0:00:01] Threatens to win with g3.} Kb7 $2 {[%emt 0:00:01]} (53... f4 $16) 54. Bf3 {[%emt 0:00:01]} Kb6 {[%emt 0:00:03]} 55. g3 {[%emt 0:00:13]} Kb7 {[%emt 0:00:01]} 56. Ra5 {[%emt 0:00:03]} Kb6 {[%emt 0:00:01]} 57. Ra8 {[%emt 0:00:04]} Kb7 {[%emt 0:00:01] Inhibits Rc8.} 58. Ra1 {[%emt 0:00:08]} Kb6 {[%emt 0:00:01]} 59. Kh6 {[%emt 0:00:02]} Kb7 {[%emt 0:00:03]} 60. Kg7 {[%emt 0:00:05] Prevents Rg8+.} Rf7+ {[%emt 0:00:01]} 61. Kxg6 {[%emt 0:00:02]} Rf8+ {[%emt 0:00:03]} (61... f4 62. Kh6 (62. Bxh5 Rf5+ 63. Kg7 Bxh5 $11) (62. Kxh5 $2 Rg7+ 63. Kh6 Rg6+ 64. Kh7 Rxg3 $19) 62... fxg3 63. Bxh5 Rf2 64. Bxe8 Rxb2) 62. Kg5 {[%emt 0:00:01]} (62. Kg7 Rf7+ 63. Kg8 Rc7 $16) 62... Rg8+ {[%emt 0:00:01]} 63. Kf4 $2 {[%emt 0:00:00]} (63. Kf6 $18 {is the precise move to win.}) 63... Rg7 $16 {[%emt 0:00:01]} 64. Ra5 {[%emt 0:00:06]} Re7 {[%emt 0:00:12]} (64... Bf7 $16 {was called for.} 65. Rc5 Kb8) 65. Rc5 $18 {[%emt 0:00:09]} Rg7 $2 {[%emt 0:00:00]} (65... Kb8 66. Bxd5 exd5) 66. Rxc4 {[%emt 0:00:01]} Kb6 {[%emt 0:00:01]} 67. Rb4+ {[%emt 0:00:01]} Kc7 {[%emt 0:00:01]} 68. Rxb3 {[%emt 0:00:00]} Rg8 {[%emt 0:00:02]} 69. Ra3 {[%emt 0:00:01]} Bc6 {[%emt 0:00:01]} 70. Ra7+ {[%emt 0:00:01]} Kb6 {[%emt 0:00:01]} 71. Re7 {[%emt 0:00:02]} Ra8 {[%emt 0:00:02]} 72. Rxe6 {[%emt 0:00:00]} Kb5 {[%emt 0:00:01]} 73. c4+ {[%emt 0:00:18]} 1-0

[Event "European Women Blitz-ch 2024"]
[Site "Monaco"]
[Date "2025.01.10"]
[Round "6.11"]
[White "Cramling Bellon, Anna"]
[Black "Sliwicka, Alicja"]
[Result "0-1"]
[Annotator "TA"]
[ECO "A57"]
[WhiteElo "2052"]
[BlackElo "2344"]
[PlyCount "100"]
[EventDate "2025.01.06"]
[EventType "swiss"]
[EventCountry "MNC"]
[SourceTitle "playchess.com"]
[Source "ChessBase"]
[SourceQuality "1"]
[TimeControl "180+2"]

{[%evp 10,99,98,98,104,87,71,69,70,66,100,95,141,132,135,138,133,135,127,126,149,125,139,70,73,56,62,73,52,67,86,62,120,7,134,129,128,131,138,135,137,-18,0,-80,-79,-83,-80,-80,-72,-87,-79,-106,-62,-83,-79,-84,-53,-91,0,-87,-81,-81,-81,-81,-8,-79,-79,-81,-13,-13,0,-79,-19,-65,-31,-12,0,-60,-2,-3,-3,-25,-8,-8,0,0,0,0,0,0,0,-29999]} 1. d4 {[%emt 0:00:01]} Nf6 {[%emt 0:00:01]} 2. c4 {[%emt 0:00:01]} c5 {[%emt 0:00:01]} 3. d5 {[%emt 0:00:01]} b5 {[%emt 0:00:01]} 4. cxb5 {[%emt 0:00:07]} a6 {[%emt 0:00:00]} 5. Nc3 {[%emt 0:00:01]} g6 {[%emt 0:00:03]} 6. e4 {[%emt 0:00:02] e5 is the strong threat.} d6 {[%emt 0:00:02]} 7. Bd2 {[%emt 0:00:07]} Bg7 {[%emt 0:00:02]} 8. a4 {[%emt 0:00:03]} O-O {[%emt 0:00:07]} 9. Nf3 {[%emt 0:00:01]} Nbd7 {[%emt 0:00:05]} 10. h3 {[%emt 0:00:03]} Qa5 {[%emt 0:00:13]} (10... e6 $142) 11. Bd3 $16 {[%emt 0:00:14]} axb5 {[%emt 0:00:10]} 12. Nxb5 {[%emt 0:00:08]} Qb6 {[%emt 0:00:04][%cal Oc5c4]} 13. O-O {[%emt 0:00:13]} Ba6 {[%emt 0:00:11][%cal Oc5c4]} 14. Qe2 {[%emt 0:00:25]} Rfb8 {[%emt 0:00:17]} 15. Bc3 {[%emt 0:00:02]} Ne8 {[%emt 0:00:40]} 16. e5 {[%emt 0:00:12]} (16. Rfc1 $16) 16... dxe5 {[%emt 0:00:05]} 17. Nxe5 {[%emt 0:00:03]} Nxe5 {[%emt 0:00:12]} 18. Bxe5 {[%emt 0:00:01]} Bxe5 {[%emt 0:00:02]} 19. Qxe5 {[%emt 0:00:02]} Rb7 {[%emt 0:00:06]} 20. Rfe1 {[%emt 0:00:37]} Rd8 {[%emt 0:00:02]} (20... Nd6 $14) 21. d6 {[%emt 0:00:40]} Nxd6 {[%emt 0:00:07]} (21... Bxb5 $11 22. axb5 (22. Bxb5 Nxd6 23. Bf1 Ra8 $11) 22... Qxd6) 22. a5 {[%emt 0:00:01]} Qc6 {[%emt 0:00:10]} 23. Nxd6 {[%emt 0:00:14]} Qxd6 {[%emt 0:00:07]} 24. Bxa6 {[%emt 0:00:11]} Qxa6 {[%emt 0:00:01]} 25. Rad1 $2 {[%emt 0:00:04] Repels Rd2} (25. Qxc5 $16 Rxb2 26. Qxe7 (26. Rxe7 Qf6 $16)) 25... Rc8 {[%emt 0:00:07]} 26. Re3 {[%emt 0:00:15]} (26. Qc3 $11) 26... Qxa5 $17 {[%emt 0:00:04]} 27. Red3 {[%emt 0:00:01]} Qc7 {[%emt 0:00:08]} 28. Qe2 {[%emt 0:00:03]} Rcb8 {[%emt 0:00:16]} 29. R1d2 {[%emt 0:00:02]} h5 {[%emt 0:00:02]} 30. Rc3 {[%emt 0:00:01]} Qb6 {[%emt 0:00:05]} 31. Rdc2 {[%emt 0:00:02]} Rc8 {[%emt 0:00:03]} 32. Qe5 {[%emt 0:00:01][%cal Rc3c5]} Rbc7 {[%emt 0:00:02]} 33. Qg5 {[%emt 0:00:03]} Qf6 {[%emt 0:00:04]} (33... c4 $17) 34. Qd5 {[%emt 0:00:01]} (34. Qxf6 $11 exf6 35. Rc4) 34... Kg7 {[%emt 0:00:02]} 35. Rc4 {[%emt 0:00:03][%cal Od5e4]} Qd6 {[%emt 0:00:02]} 36. Qf3 {[%emt 0:00:02]} Rd8 {[%emt 0:00:06]} (36... f6 $17) 37. Qc3+ {[%emt 0:00:03]} (37. b4 $1 $11 {remains equal.}) 37... f6 {[%emt 0:00:11]} 38. Rxc5 {[%emt 0:00:02]} Qd1+ {[%emt 0:00:04]} ({Better is} 38... Qxc5 $17 39. Qxc5 Rd1+ (39... Rxc5 40. Rxc5 Rd1+ 41. Kh2 $17) 40. Kh2 Rxc5 41. Rxc5 Rd2) 39. Kh2 $11 {[%emt 0:00:01]} Qd6+ {[%emt 0:00:03]} (39... Ra7 $11) 40. Kg1 $17 {[%emt 0:00:01]} Ra7 {[%emt 0:00:04]} (40... Qxc5 $17 41. Qxc5 Rd1+ (41... Rxc5 42. Rxc5 Rd1+ 43. Kh2 $17) 42. Kh2 Rxc5 43. Rxc5 Rd2) 41. Ra5 {[%emt 0:00:03]} (41. Rc1 $11) 41... Qd1+ {[%emt 0:00:05]} 42. Kh2 {[%emt 0:00:01]} Qd6+ $40 {[%emt 0:00:04][%mdl 128] Black has some attack.} (42... Rad7 $11) 43. Kg1 $15 {[%emt 0:00:02]} Rda8 {[%emt 0:00:01]} (43... Qb8 $15 44. Rc1 Rxa5 45. Qxa5 Qxb2) 44. Rxa7 $11 {[%emt 0:00:03]} Rxa7 {[%emt 0:00:01][%cal Ba8a7,Ba7b7,Bb7b5,Bb5e5][%mdl 4128] Endgame KQR-KQR} 45. b4 {[%emt 0:00:03]} Rb7 {[%emt 0:00:02]} 46. Rb2 {[%emt 0:00:04]} Rb5 {[%emt 0:00:01]} 47. Qc4 {[%emt 0:00:02]} Qb6 {[%emt 0:00:02]} 48. g3 {[%emt 0:00:02]} Re5 {[%emt 0:00:04]} 49. Kg2 {[%emt 0:00:01]} Qb7+ {[%emt 0:00:01]} 50. Kf1 $2 {[%emt 0:00:02][%mdl 8192]} (50. f3 $11) 50... Qh1# {[%emt 0:00:09]} 0-1

[Event "European Women Blitz-ch 2024"]
[Site "Monaco"]
[Date "2025.01.10"]
[Round "6.12"]
[White "Wagner, Dinara"]
[Black "Charkhalashvili, Inga"]
[Result "1/2-1/2"]
[Annotator "TA"]
[ECO "E08"]
[WhiteElo "2437"]
[BlackElo "2240"]
[PlyCount "130"]
[EventDate "2025.01.06"]
[EventType "swiss"]
[EventCountry "MNC"]
[SourceTitle "playchess.com"]
[Source "ChessBase"]
[SourceQuality "1"]
[TimeControl "180+2"]

{[%evp 36,130,-12,-18,-6,-22,-12,-178,0,0,-1,-79,-77,-74,-68,-72,-79,-77,-73,-84,-21,-14,0,-71,-62,-75,-38,-84,-69,-119,-97,-102,-101,-103,-108,-194,-216,-402,-389,-399,-393,-833,-248,-230,-114,-103,-76,-93,-62,-179,-180,-180,-158,-171,-157,-181,-160,-158,-51,-77,-77,-201,-77,-77,-77,-77,-51,-56,0,0,0,0,0,0,0,0,0,0,0,0,0,0,0,0,8,8,8,8,8,8,8,-8,-8,-8,-8,-8,-8]} 1. d4 {[%emt 0:00:00]} Nf6 {[%emt 0:00:01]} 2. c4 {[%emt 0:00:01]} e6 {[%emt 0:00:01]} 3. Nf3 {[%emt 0:00:02]} d5 {[%emt 0:00:01]} 4. g3 {[%emt 0:00:01]} Be7 {[%emt 0:00:02]} 5. Bg2 {[%emt 0:00:02]} O-O {[%emt 0:00:02]} 6. Qc2 {[%emt 0:00:00]} c6 {[%emt 0:00:02]} 7. O-O {[%emt 0:00:02]} Nbd7 {[%emt 0:00:03]} 8. Rd1 {[%emt 0:00:16]} dxc4 {[%emt 0:00:12]} 9. Qxc4 {[%emt 0:00:01]} Nb6 {[%emt 0:00:01]} 10. Qc2 {[%emt 0:00:01]} Nbd5 {[%emt 0:00:11]} 11. a3 {[%emt 0:00:01]} Bd7 {[%emt 0:00:06]} 12. e4 {[%emt 0:00:04]} Nb6 {[%emt 0:00:09]} 13. Nc3 {[%emt 0:00:01]} Rc8 {[%emt 0:00:04]} 14. Qe2 {[%emt 0:00:03]} c5 {[%emt 0:00:15]} 15. d5 {[%emt 0:00:15]} exd5 {[%emt 0:00:01]} 16. exd5 {[%emt 0:00:03]} Bd6 {[%emt 0:00:08]} 17. Qc2 {[%emt 0:00:09]} Re8 {[%emt 0:00:07]} 18. Bg5 {[%emt 0:00:22]} h6 {[%emt 0:00:02]} 19. Bxf6 {[%emt 0:00:05]} Qxf6 {[%emt 0:00:10]} 20. Re1 {[%emt 0:00:01]} (20. Ne4 $5 Rxe4 21. Qxe4 $11) 20... Bf5 {[%emt 0:00:05]} 21. Ne4 $2 {[%emt 0:00:21]} (21. Qd1 $11) 21... Qd8 $2 {[%emt 0:00:11]} (21... Nxd5 $2 22. Nxf6+ Nxf6 23. Rxe8+ (23. Qxf5 Rf8 $18) 23... Rxe8 24. Qxf5 $18) (21... Bxe4 $19 22. Rxe4 Rxe4 (22... Nxd5 23. Rxe8+ Rxe8 24. Rd1 $15) 23. Qxe4 Qxb2) 22. Nh4 $11 {[%emt 0:00:05]} Bh7 {[%emt 0:00:04]} 23. Qd2 {[%emt 0:00:11]} (23. Bh3 $11) 23... Be7 $17 {[%emt 0:00:13]} 24. Nf3 {[%emt 0:00:10]} Qxd5 {[%emt 0:00:03]} 25. Qxd5 {[%emt 0:00:13]} Nxd5 {[%emt 0:00:01]} 26. Rad1 {[%emt 0:01:24]} Nb6 {[%emt 0:00:01]} 27. Ne5 {[%emt 0:00:00]} c4 {[%emt 0:00:15]} ({Black should play} 27... Bf5 $17 28. h3 Kf8) 28. Nc3 $1 $11 {[%emt 0:00:00]} Bf6 {[%emt 0:00:08]} 29. f4 {[%emt 0:00:00]} (29. Bxb7 $11 {remains equal.} Bc2 (29... Rxe5 $2 30. Bxc8 Rxe1+ 31. Rxe1 $18) (29... Rc7 30. Nxc4 Rxe1+ 31. Rxe1 $11) 30. Rd2) 29... Re7 $17 {[%emt 0:00:06]} 30. Nb5 {[%emt 0:00:00]} Bxe5 {[%emt 0:00:09]} 31. fxe5 {[%emt 0:00:00]} (31. Rxe5 $15 Rxe5 32. fxe5) 31... Bd3 {[%emt 0:00:01]} 32. Nd6 {[%emt 0:00:00]} (32. Nxa7 $15 Rc5 33. b3) 32... Rc5 {[%emt 0:00:01]} 33. Nxb7 {[%emt 0:00:00]} Rcxe5 {[%emt 0:00:01]} 34. Rxe5 {[%emt 0:00:01]} Rxe5 {[%emt 0:00:01]} 35. Rd2 {[%emt 0:00:03]} (35. Bf1 $17) 35... Na4 $19 {[%emt 0:00:09]} 36. Nd8 $2 {[%emt 0:00:02]} (36. Nd6) 36... Re1+ $19 {[%emt 0:00:04]} 37. Kf2 {[%emt 0:00:01]} Rb1 {[%emt 0:00:01]} 38. b4 $2 {[%emt 0:00:09]} (38. Ke3 Nxb2 (38... Rxb2 39. Rxb2 Nxb2 40. Kd4 $11) 39. Kd4) 38... Ra1 $2 {[%emt 0:00:01]} (38... c3 39. Rxd3 c2) 39. Nc6 $19 {[%emt 0:00:02]} Rxa3 {[%emt 0:00:02]} (39... Kh7 $19 {aiming for ...c3.} 40. Bf3 c3 (40... Rxa3 $2 41. Ne5 $19)) 40. Ne5 $17 {[%emt 0:00:01]} Rb3 {[%emt 0:00:04]} 41. Bd5 {[%emt 0:00:03]} Rxb4 {[%emt 0:00:02]} 42. Nxd3 {[%emt 0:00:03]} (42. Bxf7+ $15 Kf8 43. Bxc4 Rxc4 (43... Bxc4 $2 {perishes.} 44. Rd8+ Ke7 45. Nc6+ Ke6 46. Nxb4 $18) 44. Rxd3) 42... cxd3 $19 {[%emt 0:00:02]} 43. Rxd3 {[%emt 0:00:02]} Nc5 {[%emt 0:00:04]} 44. Ra3 {[%emt 0:00:02]} a6 {[%emt 0:00:02]} 45. Ra5 {[%emt 0:00:00]} Rb2+ {[%emt 0:00:04]} 46. Ke3 {[%emt 0:00:01] [#]} Nd7 {[%emt 0:00:03]} (46... Rb5 $1 $17 {[%cal Rb5a5]} 47. Rxb5 axb5) 47. h4 {[%emt 0:00:07]} Rb6 {[%emt 0:00:01]} 48. Kd4 {[%emt 0:00:01]} (48. Bc4 $17) 48... Nf6 {[%emt 0:00:04]} (48... Rg6 $19 {is more deadly.} 49. Ke3 Rxg3+ 50. Bf3 Kf8 51. Rxa6 Ne5 52. Ra8+ Ke7) 49. Bc4 $17 {[%emt 0:00:01]} Rd6+ {[%emt 0:00:02]} 50. Ke3 {[%emt 0:00:01]} Ng4+ {[%emt 0:00:03]} 51. Kf3 {[%emt 0:00:02] [#]} h5 {[%emt 0:00:07]} (51... Nh2+ $1 $15 52. Ke2 (52. Ke3 Ng4+) 52... Ng4) 52. Rxh5 $11 {[%emt 0:00:02]} Nf6 {[%emt 0:00:03]} 53. Ra5 {[%emt 0:00:01]} Rd4 {[%emt 0:00:03]} 54. Bxa6 {[%emt 0:00:11]} g6 {[%emt 0:00:05]} 55. Be2 {[%emt 0:00:00]} Kg7 {[%emt 0:00:03]} 56. Ra7 {[%emt 0:00:00]} Rb4 {[%emt 0:00:02]} 57. Bd1 {[%emt 0:00:00]} Nd5 {[%emt 0:00:02]} 58. Be2 {[%emt 0:00:00]} Rb3+ {[%emt 0:00:03]} 59. Kf2 {[%emt 0:00:00]} Nf6 {[%emt 0:00:05]} 60. Rxf7+ {[%emt 0:00:00]} Kxf7 {[%emt 0:00:04]} 61. Bc4+ {[%emt 0:00:00]} Kg7 {[%emt 0:00:01]} 62. Bxb3 {[%emt 0:00:00]} Ne4+ {[%emt 0:00:01]} 63. Kf3 {[%emt 0:00:01]} Nd2+ {[%emt 0:00:01]} 64. Kg4 {[%emt 0:00:01]} Nxb3 {[%emt 0:00:01]} 65. h5 {[%emt 0:00:01]} gxh5+ {[%emt 0:00:08]} 1/2-1/2